[Event "Early-Titled-Tuesday-Blitz-January-16-2024"]
[Site "Chess.com"]
[Date "2024.01.16"]
[Round "3"]
[White "blitzking1729"]
[Black "Glaive_64"]
[Result "1-0"]
[WhiteElo "2683"]
[BlackElo "2357"]
[TimeControl "180+1"]
[EndTime "8:28:45 PST"]
[Termination "blitzking1729 won by resignation"]

1. c4 {[%clk 0:02:55.8]} 1... Nf6 {[%clk 0:02:09.8]} 2. Nc3 {[%clk 0:02:54]}
2... g6 {[%clk 0:02:08.9]} 3. g3 {[%clk 0:02:51]} 3... Bg7 {[%clk 0:02:09.2]} 4.
Bg2 {[%clk 0:02:51.9]} 4... O-O {[%clk 0:02:09.6]} 5. e4 {[%clk 0:02:47.9]} 5...
d6 {[%clk 0:02:05.8]} 6. Nge2 {[%clk 0:02:44.2]} 6... c5 {[%clk 0:02:05.9]} 7.
O-O {[%clk 0:02:43.8]} 7... Nc6 {[%clk 0:02:06.5]} 8. d3 {[%clk 0:02:40.4]} 8...
a6 {[%clk 0:02:04.8]} 9. h3 {[%clk 0:02:32.3]} 9... Rb8 {[%clk 0:01:47.4]} 10.
a4 {[%clk 0:02:32.2]} 10... Bd7 {[%clk 0:01:36.5]} 11. Bg5 {[%clk 0:02:27.4]}
11... h6 {[%clk 0:01:30.4]} 12. Be3 {[%clk 0:02:27.1]} 12... Kh7 {[%clk
0:01:28.3]} 13. Qd2 {[%clk 0:02:25.4]} 13... e5 {[%clk 0:01:17.7]} 14. f4 {[%clk
0:02:14]} 14... Nd4 {[%clk 0:01:07.5]} 15. Rab1 {[%clk 0:02:07.9]} 15... b5
{[%clk 0:01:01.5]} 16. axb5 {[%clk 0:02:04.7]} 16... axb5 {[%clk 0:01:00]} 17.
cxb5 {[%clk 0:02:04.4]} 17... Bxb5 {[%clk 0:00:59.7]} 18. Nxb5 {[%clk
0:01:56.1]} 18... Rxb5 {[%clk 0:00:58.8]} 19. Kh2 {[%clk 0:01:46.5]} 19... Qb6
{[%clk 0:00:54.5]} 20. Nc3 {[%clk 0:01:42]} 20... Rb3 {[%clk 0:00:52.8]} 21.
fxe5 {[%clk 0:01:39.6]} 21... dxe5 {[%clk 0:00:53.1]} 22. Rf2 {[%clk 0:01:39.5]}
22... Rb8 {[%clk 0:00:46.4]} 23. g4 {[%clk 0:01:34.8]} 23... Qa6 {[%clk
0:00:27.1]} 24. g5 {[%clk 0:01:28.4]} 24... hxg5 {[%clk 0:00:23.3]} 25. Bxg5
{[%clk 0:01:28.3]} 25... Nh5 {[%clk 0:00:23.4]} 26. Rxf7 {[%clk 0:01:23.4]}
26... Qe6 {[%clk 0:00:18]} 27. Rf2 {[%clk 0:01:22.5]} 27... Qb6 {[%clk
0:00:17.7]} 28. Nd5 {[%clk 0:01:22.2]} 28... Qa6 {[%clk 0:00:17.3]} 29. Bf1
{[%clk 0:01:16.7]} 29... Qe6 {[%clk 0:00:13.9]} 30. Qd1 {[%clk 0:01:11.9]} 30...
Qd7 {[%clk 0:00:06.7]} 31. Qg4 {[%clk 0:01:11.5]} 31... Qb5 {[%clk 0:00:05.2]}
32. Rg2 {[%clk 0:01:06.4]} 32... Qe8 {[%clk 0:00:04.4]} 33. Be3 {[%clk
0:01:02.8]} 33... c4 {[%clk 0:00:04]} 34. dxc4 {[%clk 0:00:57.2]} 34... Nc6
{[%clk 0:00:01.4]} 35. c5 {[%clk 0:00:53]} 35... Nd4 {[%clk 0:00:01.8]} 36. Bc4
{[%clk 0:00:52.1]} 36... R3b7 {[%clk 0:00:01.2]} 37. Rbg1 {[%clk 0:00:51.2]}
37... Rxb2 {[%clk 0:00:01.5]} 38. Nc7 {[%clk 0:00:47.6]} 38... R8b3 {[%clk
0:00:01.7]} 39. Nxe8 {[%clk 0:00:46.4]} 1-0

[Event "Early-Titled-Tuesday-Blitz-January-16-2024"]
[Site "Chess.com"]
[Date "2024.01.16"]
[Round "3"]
[White "j2806"]
[Black "reniite"]
[Result "1-0"]
[WhiteElo "2086"]
[BlackElo "2345"]
[TimeControl "180+1"]
[EndTime "8:28:45 PST"]
[Termination "j2806 won by checkmate"]

1. e4 {[%clk 0:03:00.9]} 1... e5 {[%clk 0:00:41.9]} 2. Nf3 {[%clk 0:03:00.3]}
2... Nf6 {[%clk 0:00:42.6]} 3. Nxe5 {[%clk 0:03:00.1]} 3... d6 {[%clk
0:00:42.7]} 4. Nf3 {[%clk 0:03:00.3]} 4... Nxe4 {[%clk 0:00:43.4]} 5. Nc3 {[%clk
0:03:00.1]} 5... Nxc3 {[%clk 0:00:44]} 6. dxc3 {[%clk 0:03:01]} 6... Be7 {[%clk
0:00:44.4]} 7. Bd3 {[%clk 0:03:01.1]} 7... O-O {[%clk 0:00:45.3]} 8. Bf4 {[%clk
0:02:59.2]} 8... c5 {[%clk 0:00:44.7]} 9. Qd2 {[%clk 0:02:58.6]} 9... d5 {[%clk
0:00:44.7]} 10. O-O-O {[%clk 0:02:57.6]} 10... Qa5 {[%clk 0:00:42.4]} 11. Kb1
{[%clk 0:02:54.6]} 11... Be6 {[%clk 0:00:42.5]} 12. Ng5 {[%clk 0:02:46.1]} 12...
d4 {[%clk 0:00:42.1]} 13. c4 {[%clk 0:02:35.4]} 13... Bxg5 {[%clk 0:00:40.9]}
14. Qxa5 {[%clk 0:02:29.8]} 14... Bxf4 {[%clk 0:00:41.4]} 15. Qxc5 {[%clk
0:02:27.3]} 15... Nc6 {[%clk 0:00:39.8]} 16. Qh5 {[%clk 0:02:19.2]} 16... g6
{[%clk 0:00:39.5]} 17. Qf3 {[%clk 0:02:16.2]} 17... Bh6 {[%clk 0:00:36.8]} 18.
Rde1 {[%clk 0:02:10]} 18... Rfd8 {[%clk 0:00:33.7]} 19. h4 {[%clk 0:02:08]}
19... Bg7 {[%clk 0:00:33.8]} 20. h5 {[%clk 0:02:01]} 20... Rac8 {[%clk
0:00:32.5]} 21. hxg6 {[%clk 0:01:52]} 21... Ne5 {[%clk 0:00:31.7]} 22. gxf7+
{[%clk 0:01:45.2]} 22... Bxf7 {[%clk 0:00:31.4]} 23. Bxh7+ {[%clk 0:01:38.7]}
23... Kf8 {[%clk 0:00:31.5]} 24. Rxe5 {[%clk 0:01:09.1]} 24... Bxe5 {[%clk
0:00:30.9]} 25. Bg6 {[%clk 0:01:06.4]} 25... Rc7 {[%clk 0:00:27]} 26. Qf5 {[%clk
0:00:56.2]} 26... Bg7 {[%clk 0:00:22]} 27. f4 {[%clk 0:00:41.2]} 27... Rdd7
{[%clk 0:00:16.6]} 28. b3 {[%clk 0:00:39.1]} 28... b6 {[%clk 0:00:16.3]} 29. Re1
{[%clk 0:00:34.4]} 29... Re7 {[%clk 0:00:16.4]} 30. Rd1 {[%clk 0:00:28.5]} 30...
Red7 {[%clk 0:00:16]} 31. g4 {[%clk 0:00:28.3]} 31... Rd6 {[%clk 0:00:14.7]} 32.
Bxf7 {[%clk 0:00:24]} 32... Rf6 {[%clk 0:00:12.7]} 33. Qd5 {[%clk 0:00:15]}
33... Rfxf7 {[%clk 0:00:13.6]} 34. Qd8# {[%clk 0:00:14.6]} 1-0

[Event "Early-Titled-Tuesday-Blitz-January-16-2024"]
[Site "Chess.com"]
[Date "2024.01.16"]
[Round "3"]
[White "tactic"]
[Black "LoScecco"]
[Result "1-0"]
[WhiteElo "2552"]
[BlackElo "2207"]
[TimeControl "180+1"]
[EndTime "8:28:46 PST"]
[Termination "tactic won by resignation"]

1. e4 {[%clk 0:03:00.9]} 1... c5 {[%clk 0:02:59.1]} 2. g3 {[%clk 0:03:01.3]}
2... g6 {[%clk 0:02:58.4]} 3. Bg2 {[%clk 0:03:01.7]} 3... Bg7 {[%clk 0:02:58.5]}
4. d3 {[%clk 0:03:02.4]} 4... Nc6 {[%clk 0:02:56.8]} 5. Ne2 {[%clk 0:03:03.1]}
5... d6 {[%clk 0:02:54.4]} 6. O-O {[%clk 0:03:03.7]} 6... e5 {[%clk 0:02:53.9]}
7. f4 {[%clk 0:02:54.8]} 7... Nge7 {[%clk 0:02:51.5]} 8. Nbc3 {[%clk 0:02:42.6]}
8... O-O {[%clk 0:02:49.6]} 9. a3 {[%clk 0:02:14.9]} 9... Rb8 {[%clk 0:02:48.7]}
10. Rb1 {[%clk 0:02:14.8]} 10... a5 {[%clk 0:02:42.6]} 11. Nb5 {[%clk
0:02:12.8]} 11... Bg4 {[%clk 0:02:35.3]} 12. c3 {[%clk 0:02:06.8]} 12... f5
{[%clk 0:02:28.9]} 13. h3 {[%clk 0:02:01.8]} 13... Bxe2 {[%clk 0:02:28.4]} 14.
Qxe2 {[%clk 0:02:02.7]} 14... exf4 {[%clk 0:01:56.6]} 15. Bxf4 {[%clk
0:01:37.4]} 15... Ne5 {[%clk 0:01:56]} 16. d4 {[%clk 0:01:34.8]} 16... cxd4
{[%clk 0:01:55.8]} 17. cxd4 {[%clk 0:01:35.7]} 17... Nf7 {[%clk 0:01:45.2]} 18.
Kh2 {[%clk 0:01:09]} 18... fxe4 {[%clk 0:01:26.7]} 19. Bxe4 {[%clk 0:01:09.9]}
19... Nc6 {[%clk 0:01:08]} 20. Qd3 {[%clk 0:00:20.7]} 20... Qb6 {[%clk
0:00:54.7]} 21. Nxd6 {[%clk 0:00:15.3]} 21... Kh8 {[%clk 0:00:38.1]} 22. Nxf7+
{[%clk 0:00:14.3]} 22... Rxf7 {[%clk 0:00:38.2]} 23. Bxb8 {[%clk 0:00:15.2]}
23... Rxf1 {[%clk 0:00:30.8]} 24. Rxf1 {[%clk 0:00:14.5]} 24... Nxb8 {[%clk
0:00:30.2]} 25. Qc2 {[%clk 0:00:11.8]} 25... Nc6 {[%clk 0:00:26.3]} 26. d5
{[%clk 0:00:12.1]} 26... Ne7 {[%clk 0:00:26.1]} 27. Rf7 {[%clk 0:00:10.8]} 27...
Kg8 {[%clk 0:00:24.2]} 28. Rxe7 {[%clk 0:00:10.3]} 28... Qd6 {[%clk 0:00:22.9]}
29. Qc8+ {[%clk 0:00:10.3]} 29... Bf8 {[%clk 0:00:21.9]} 30. Qe6+ {[%clk
0:00:10.9]} 30... Qxe6 {[%clk 0:00:19.9]} 31. Rxe6 {[%clk 0:00:11.8]} 1-0

[Event "Early-Titled-Tuesday-Blitz-January-16-2024"]
[Site "Chess.com"]
[Date "2024.01.16"]
[Round "3"]
[White "ozates"]
[Black "maHmoUd-S-haddAd-M"]
[Result "1-0"]
[WhiteElo "2592"]
[BlackElo "2339"]
[TimeControl "180+1"]
[EndTime "8:28:48 PST"]
[Termination "ozates won by checkmate"]

1. Nf3 {[%clk 0:03:00.9]} 1... Nc6 {[%clk 0:02:59]} 2. e4 {[%clk 0:02:59.9]}
2... d5 {[%clk 0:02:58.4]} 3. exd5 {[%clk 0:02:59.7]} 3... Qxd5 {[%clk
0:02:59.3]} 4. Nc3 {[%clk 0:03:00.1]} 4... Qh5 {[%clk 0:02:58.3]} 5. Nb5 {[%clk
0:03:00.4]} 5... Kd8 {[%clk 0:02:49]} 6. d4 {[%clk 0:03:00.3]} 6... Bg4 {[%clk
0:02:46.3]} 7. d5 {[%clk 0:03:00.2]} 7... Bxf3 {[%clk 0:02:46.2]} 8. gxf3 {[%clk
0:02:57.7]} 8... Nb4 {[%clk 0:02:27.5]} 9. Bf4 {[%clk 0:02:52.1]} 9... Na6
{[%clk 0:02:20.8]} 10. c4 {[%clk 0:02:41.4]} 10... Nf6 {[%clk 0:02:17.8]} 11.
Be2 {[%clk 0:02:36.4]} 11... g5 {[%clk 0:01:57.1]} 12. Be5 {[%clk 0:02:31.3]}
12... Bg7 {[%clk 0:01:57.3]} 13. d6 {[%clk 0:02:06.4]} 13... exd6 {[%clk
0:01:50.7]} 14. Nxd6 {[%clk 0:02:06.5]} 14... cxd6 {[%clk 0:01:46.3]} 15. Qxd6+
{[%clk 0:02:07.4]} 15... Nd7 {[%clk 0:01:44.7]} 16. Bxg7 {[%clk 0:02:05.6]}
16... Re8 {[%clk 0:01:40.4]} 17. O-O-O {[%clk 0:02:04.4]} 17... Nb8 {[%clk
0:01:26.5]} 18. Be5 {[%clk 0:01:40.9]} 18... Rxe5 {[%clk 0:01:00.5]} 19. Qxe5
{[%clk 0:01:38.6]} 19... Nc6 {[%clk 0:01:00.6]} 20. Qh8+ {[%clk 0:01:22.8]}
20... Kc7 {[%clk 0:01:00.8]} 21. Rxd7+ {[%clk 0:01:08]} 21... Kxd7 {[%clk
0:00:54.7]} 22. Qxa8 {[%clk 0:01:07.5]} 22... Qg6 {[%clk 0:00:48.3]} 23. Rd1+
{[%clk 0:01:06.5]} 23... Kc7 {[%clk 0:00:48.6]} 24. Qe8 {[%clk 0:00:56.9]} 24...
Qf5 {[%clk 0:00:32.3]} 25. Qe4 {[%clk 0:00:51.9]} 25... Qa5 {[%clk 0:00:26.9]}
26. a3 {[%clk 0:00:52.2]} 26... a6 {[%clk 0:00:24.2]} 27. Qd5 {[%clk 0:00:51.1]}
27... Qa4 {[%clk 0:00:19]} 28. c5 {[%clk 0:00:47.1]} 28... Kb8 {[%clk
0:00:13.2]} 29. Qc4 {[%clk 0:00:43.5]} 29... Qa5 {[%clk 0:00:11.9]} 30. Kb1
{[%clk 0:00:42.9]} 30... Qc7 {[%clk 0:00:11.7]} 31. Qd3 {[%clk 0:00:40.4]} 31...
Ka7 {[%clk 0:00:10.7]} 32. Qxh7 {[%clk 0:00:39.2]} 32... Qe5 {[%clk 0:00:09.7]}
33. Qe4 {[%clk 0:00:38]} 33... Qxh2 {[%clk 0:00:09.4]} 34. Rd7 {[%clk
0:00:35.5]} 34... Qxf2 {[%clk 0:00:09.1]} 35. Qxc6 {[%clk 0:00:32]} 35... Qe1+
{[%clk 0:00:08.6]} 36. Ka2 {[%clk 0:00:31.8]} 36... Qxe2 {[%clk 0:00:08.3]} 37.
Qxb7# {[%clk 0:00:31.3]} 1-0

[Event "Early-Titled-Tuesday-Blitz-January-16-2024"]
[Site "Chess.com"]
[Date "2024.01.16"]
[Round "3"]
[White "SarochaChuemsakul"]
[Black "sakkikuska"]
[Result "0-1"]
[WhiteElo "2400"]
[BlackElo "2609"]
[TimeControl "180+1"]
[EndTime "8:28:50 PST"]
[Termination "sakkikuska won by resignation"]

1. d4 {[%clk 0:02:58.2]} 1... Nf6 {[%clk 0:02:59.6]} 2. c4 {[%clk 0:02:58.4]}
2... g6 {[%clk 0:03:00.1]} 3. Nf3 {[%clk 0:02:58.6]} 3... Bg7 {[%clk 0:02:59.5]}
4. Nc3 {[%clk 0:02:59.1]} 4... d5 {[%clk 0:02:59.5]} 5. cxd5 {[%clk 0:02:58.8]}
5... Nxd5 {[%clk 0:03:00.4]} 6. e4 {[%clk 0:02:59.7]} 6... Nxc3 {[%clk
0:03:00.1]} 7. bxc3 {[%clk 0:03:00.6]} 7... c5 {[%clk 0:03:00.9]} 8. Be2 {[%clk
0:02:55.3]} 8... Nc6 {[%clk 0:02:58]} 9. Be3 {[%clk 0:02:55.3]} 9... O-O {[%clk
0:02:54.4]} 10. O-O {[%clk 0:02:55.2]} 10... Qc7 {[%clk 0:02:47]} 11. Rc1 {[%clk
0:02:49.4]} 11... e6 {[%clk 0:02:44.7]} 12. Qc2 {[%clk 0:02:22.5]} 12... Rd8
{[%clk 0:02:43.7]} 13. Rfd1 {[%clk 0:02:22.3]} 13... a6 {[%clk 0:02:02.2]} 14.
h4 {[%clk 0:02:16.1]} 14... b5 {[%clk 0:01:58.2]} 15. h5 {[%clk 0:02:14.6]}
15... Bb7 {[%clk 0:01:57.2]} 16. h6 {[%clk 0:01:59.5]} 16... Bf6 {[%clk
0:01:39.8]} 17. e5 {[%clk 0:01:48.6]} 17... Be7 {[%clk 0:01:37.9]} 18. Bg5
{[%clk 0:01:37.9]} 18... Rac8 {[%clk 0:01:37.9]} 19. Qd2 {[%clk 0:01:19.8]}
19... Bxg5 {[%clk 0:01:16.2]} 20. Qxg5 {[%clk 0:01:19.1]} 20... Qe7 {[%clk
0:01:16.7]} 21. Qf4 {[%clk 0:00:45.8]} 21... cxd4 {[%clk 0:01:12.2]} 22. cxd4
{[%clk 0:00:43.2]} 22... Nb4 {[%clk 0:01:12.4]} 23. a3 {[%clk 0:00:41.2]} 23...
Nd5 {[%clk 0:01:11.1]} 24. Qd2 {[%clk 0:00:39.1]} 24... Qxa3 {[%clk 0:01:07.5]}
25. Ra1 {[%clk 0:00:28.6]} 25... Qe7 {[%clk 0:01:07.1]} 26. Rac1 {[%clk
0:00:27.2]} 26... b4 {[%clk 0:00:48.4]} 27. Bd3 {[%clk 0:00:12.6]} 27... a5
{[%clk 0:00:43]} 28. Be4 {[%clk 0:00:11.2]} 28... Nc3 {[%clk 0:00:39.7]} 29.
Bxb7 {[%clk 0:00:11.1]} 29... Qxb7 {[%clk 0:00:40.3]} 30. Re1 {[%clk 0:00:10.7]}
30... a4 {[%clk 0:00:35.8]} 31. Qf4 {[%clk 0:00:10.7]} 31... Nd5 {[%clk
0:00:34.6]} 32. Qe4 {[%clk 0:00:08.9]} 32... b3 {[%clk 0:00:31.4]} 33. Ng5
{[%clk 0:00:07.3]} 33... b2 {[%clk 0:00:29.4]} 34. Rxc8 {[%clk 0:00:05.9]} 34...
Rxc8 {[%clk 0:00:27.9]} 0-1

[Event "Early-Titled-Tuesday-Blitz-January-16-2024"]
[Site "Chess.com"]
[Date "2024.01.16"]
[Round "3"]
[White "RaugintaBulba"]
[Black "Malikova777"]
[Result "0-1"]
[WhiteElo "2460"]
[BlackElo "2289"]
[TimeControl "180+1"]
[EndTime "8:28:51 PST"]
[Termination "Malikova777 won by resignation"]

1. d4 {[%clk 0:03:00.9]} 1... Nf6 {[%clk 0:02:59.5]} 2. c4 {[%clk 0:03:01.3]}
2... e6 {[%clk 0:03:00]} 3. Nf3 {[%clk 0:03:01.5]} 3... d5 {[%clk 0:02:59.5]} 4.
g3 {[%clk 0:03:01.3]} 4... dxc4 {[%clk 0:02:59.5]} 5. Bg2 {[%clk 0:03:01.3]}
5... Bb4+ {[%clk 0:02:59]} 6. Bd2 {[%clk 0:03:00.5]} 6... a5 {[%clk 0:02:59.5]}
7. a3 {[%clk 0:02:52.5]} 7... Bxd2+ {[%clk 0:02:59.2]} 8. Nbxd2 {[%clk
0:02:53.2]} 8... b5 {[%clk 0:02:52.3]} 9. O-O {[%clk 0:02:52.1]} 9... c6 {[%clk
0:02:51.6]} 10. b3 {[%clk 0:02:52.3]} 10... cxb3 {[%clk 0:02:45.8]} 11. Qxb3
{[%clk 0:02:53.2]} 11... O-O {[%clk 0:02:43.6]} 12. Rfc1 {[%clk 0:02:53.2]}
12... Ra6 {[%clk 0:02:38.5]} 13. e3 {[%clk 0:02:51.8]} 13... Bd7 {[%clk
0:02:32]} 14. Ne5 {[%clk 0:02:51.5]} 14... Nd5 {[%clk 0:02:26.3]} 15. Ne4 {[%clk
0:02:51.1]} 15... f6 {[%clk 0:02:17.4]} 16. Nd3 {[%clk 0:02:42.8]} 16... a4
{[%clk 0:02:10.3]} 17. Qb2 {[%clk 0:02:32.2]} 17... Rb6 {[%clk 0:02:06.3]} 18.
Nec5 {[%clk 0:02:22.9]} 18... Na6 {[%clk 0:02:02.3]} 19. Nxa6 {[%clk 0:02:02.6]}
19... Rxa6 {[%clk 0:02:01.8]} 20. Nc5 {[%clk 0:02:03.5]} 20... Rb6 {[%clk
0:02:00.7]} 21. Rab1 {[%clk 0:02:01.3]} 21... Bc8 {[%clk 0:01:52.7]} 22. e4
{[%clk 0:01:46.2]} 22... Nc7 {[%clk 0:01:41.9]} 23. Nxa4 {[%clk 0:01:44.1]}
23... Ra6 {[%clk 0:01:21.4]} 24. Nc5 {[%clk 0:01:44.4]} 24... Ra7 {[%clk
0:01:20.6]} 25. e5 {[%clk 0:01:20.5]} 25... fxe5 {[%clk 0:01:15.6]} 26. dxe5
{[%clk 0:01:21.4]} 26... Nd5 {[%clk 0:01:15.4]} 27. Ne4 {[%clk 0:01:11.6]} 27...
Qb6 {[%clk 0:01:09.2]} 28. Rc5 {[%clk 0:01:04.9]} 28... Ra4 {[%clk 0:01:01.3]}
29. Rbc1 {[%clk 0:01:00.3]} 29... Bd7 {[%clk 0:01:00.8]} 30. Qb3 {[%clk
0:00:30.8]} 30... Rfa8 {[%clk 0:00:58.9]} 31. Qd1 {[%clk 0:00:14.1]} 31... Rxa3
{[%clk 0:00:53.6]} 32. Qg4 {[%clk 0:00:11.1]} 32... Ra1 {[%clk 0:00:39.8]} 33.
h4 {[%clk 0:00:08.4]} 33... Kh8 {[%clk 0:00:34.4]} 34. Ng5 {[%clk 0:00:05.9]}
34... Qxc5 {[%clk 0:00:29.5]} 0-1

[Event "Early-Titled-Tuesday-Blitz-January-16-2024"]
[Site "Chess.com"]
[Date "2024.01.16"]
[Round "3"]
[White "Yaacovn"]
[Black "KarstenHansch"]
[Result "1-0"]
[WhiteElo "2890"]
[BlackElo "2661"]
[TimeControl "180+1"]
[EndTime "8:28:52 PST"]
[Termination "Yaacovn won by resignation"]

1. d4 {[%clk 0:03:00.9]} 1... Nf6 {[%clk 0:02:58.8]} 2. Bg5 {[%clk 0:02:58.5]}
2... g6 {[%clk 0:02:56.7]} 3. Bxf6 {[%clk 0:02:57.9]} 3... exf6 {[%clk
0:02:57.6]} 4. g3 {[%clk 0:02:57.4]} 4... f5 {[%clk 0:02:56.3]} 5. e3 {[%clk
0:02:57.2]} 5... Bg7 {[%clk 0:02:56.9]} 6. Bg2 {[%clk 0:02:56.8]} 6... O-O
{[%clk 0:02:57.5]} 7. Ne2 {[%clk 0:02:55.4]} 7... d6 {[%clk 0:02:58]} 8. O-O
{[%clk 0:02:55.3]} 8... Nd7 {[%clk 0:02:58.6]} 9. c4 {[%clk 0:02:52.9]} 9... Nf6
{[%clk 0:02:59.1]} 10. Nbc3 {[%clk 0:02:52.5]} 10... c6 {[%clk 0:02:58.2]} 11.
b4 {[%clk 0:02:50.7]} 11... c5 {[%clk 0:02:43.8]} 12. Rb1 {[%clk 0:02:32.4]}
12... Rb8 {[%clk 0:02:34.8]} 13. Qa4 {[%clk 0:02:24.2]} 13... a6 {[%clk
0:02:30.5]} 14. Rfd1 {[%clk 0:02:08.1]} 14... Qc7 {[%clk 0:02:28.4]} 15. Nd5
{[%clk 0:02:01]} 15... Nxd5 {[%clk 0:02:27.3]} 16. Bxd5 {[%clk 0:02:01]} 16...
cxd4 {[%clk 0:02:03.5]} 17. Nxd4 {[%clk 0:01:55.1]} 17... Bxd4 {[%clk
0:01:53.5]} 18. Rxd4 {[%clk 0:01:52.3]} 18... Be6 {[%clk 0:01:53.7]} 19. Qb3
{[%clk 0:01:07.9]} 19... Rbc8 {[%clk 0:01:33.5]} 20. Rc1 {[%clk 0:01:07]} 20...
Qb6 {[%clk 0:00:55.5]} 21. Rcd1 {[%clk 0:00:56.4]} 21... Rfd8 {[%clk 0:00:49.9]}
22. a3 {[%clk 0:00:53.7]} 22... Kg7 {[%clk 0:00:47.8]} 23. h4 {[%clk 0:00:51.9]}
23... h5 {[%clk 0:00:47.6]} 24. Qb2 {[%clk 0:00:48.5]} 24... Bxd5 {[%clk
0:00:32.5]} 25. Rxd5+ {[%clk 0:00:32.6]} 25... f6 {[%clk 0:00:32.9]} 26. Qb3
{[%clk 0:00:19.8]} 26... Qc6 {[%clk 0:00:19.3]} 27. c5 {[%clk 0:00:15.5]} 27...
Rd7 {[%clk 0:00:10]} 28. Rxd6 {[%clk 0:00:13.3]} 28... Rxd6 {[%clk 0:00:09.4]}
29. Rxd6 {[%clk 0:00:13.9]} 29... Qe4 {[%clk 0:00:08.7]} 30. Rd7+ {[%clk
0:00:12.1]} 30... Kh6 {[%clk 0:00:09]} 31. Qf7 {[%clk 0:00:12.1]} 1-0

[Event "Early-Titled-Tuesday-Blitz-January-16-2024"]
[Site "Chess.com"]
[Date "2024.01.16"]
[Round "3"]
[White "Quattroporte300"]
[Black "Sokoloco"]
[Result "0-1"]
[WhiteElo "2470"]
[BlackElo "2768"]
[TimeControl "180+1"]
[EndTime "8:28:52 PST"]
[Termination "Sokoloco won by resignation"]

1. e4 {[%clk 0:03:00.9]} 1... d6 {[%clk 0:02:59]} 2. d4 {[%clk 0:03:00.3]} 2...
g6 {[%clk 0:02:59.5]} 3. Nf3 {[%clk 0:02:59]} 3... Bg7 {[%clk 0:03:00.1]} 4. Bc4
{[%clk 0:02:58.8]} 4... e6 {[%clk 0:02:59.5]} 5. Nc3 {[%clk 0:02:57.8]} 5... Nf6
{[%clk 0:02:56]} 6. Bb3 {[%clk 0:02:54.6]} 6... O-O {[%clk 0:02:53.8]} 7. h3
{[%clk 0:02:43.5]} 7... c5 {[%clk 0:02:54]} 8. dxc5 {[%clk 0:02:38.1]} 8... dxc5
{[%clk 0:02:54.9]} 9. Qxd8 {[%clk 0:02:38.1]} 9... Rxd8 {[%clk 0:02:55.8]} 10.
Be3 {[%clk 0:02:38.2]} 10... b6 {[%clk 0:02:46.1]} 11. Ke2 {[%clk 0:02:31.6]}
11... Ba6+ {[%clk 0:02:45.2]} 12. Ke1 {[%clk 0:02:27.7]} 12... Nc6 {[%clk
0:02:37.7]} 13. Rd1 {[%clk 0:02:18]} 13... Nd7 {[%clk 0:02:13.1]} 14. Ba4 {[%clk
0:01:36.4]} 14... Bxc3+ {[%clk 0:02:11]} 15. bxc3 {[%clk 0:01:35.1]} 15... b5
{[%clk 0:02:11.9]} 16. Rd6 {[%clk 0:01:28.9]} 16... Nde5 {[%clk 0:01:19.5]} 17.
Bxc5 {[%clk 0:00:13.7]} 17... Nxf3+ {[%clk 0:01:12.2]} 18. gxf3 {[%clk
0:00:13.5]} 18... Rxd6 {[%clk 0:01:13.1]} 19. Bxd6 {[%clk 0:00:13.6]} 19... bxa4
{[%clk 0:01:13.9]} 20. f4 {[%clk 0:00:10.6]} 20... Rd8 {[%clk 0:01:02.5]} 21. e5
{[%clk 0:00:10.8]} 21... f6 {[%clk 0:01:03.2]} 22. f3 {[%clk 0:00:07.3]} 22...
fxe5 {[%clk 0:00:43.5]} 23. fxe5 {[%clk 0:00:08.2]} 23... Na5 {[%clk 0:00:44.1]}
24. Kf2 {[%clk 0:00:06.1]} 24... Nc4 {[%clk 0:00:44.7]} 25. Rd1 {[%clk
0:00:05.8]} 25... Nxd6 {[%clk 0:00:44.6]} 26. exd6 {[%clk 0:00:05.8]} 26... Kf7
{[%clk 0:00:31.1]} 27. f4 {[%clk 0:00:06.1]} 27... Ke8 {[%clk 0:00:30.3]} 28.
Rd4 {[%clk 0:00:05.9]} 28... Bb5 {[%clk 0:00:30.6]} 29. Ke3 {[%clk 0:00:06.2]}
29... Kd7 {[%clk 0:00:30.1]} 30. Rb4 {[%clk 0:00:05.7]} 30... Bc6 {[%clk
0:00:28.2]} 31. Rd4 {[%clk 0:00:04.6]} 31... Rb8 {[%clk 0:00:28.1]} 32. h4
{[%clk 0:00:04.2]} 32... Rb2 {[%clk 0:00:28.4]} 33. Kd2 {[%clk 0:00:02.6]} 33...
Rxa2 {[%clk 0:00:28.4]} 34. Rb4 {[%clk 0:00:03.3]} 34... Ra1 {[%clk 0:00:25.3]}
35. Rb8 {[%clk 0:00:03.2]} 35... Rh1 {[%clk 0:00:25.6]} 0-1

[Event "Early-Titled-Tuesday-Blitz-January-16-2024"]
[Site "Chess.com"]
[Date "2024.01.16"]
[Round "3"]
[White "Zakaryan_David"]
[Black "JCVanDamme10"]
[Result "1-0"]
[WhiteElo "2672"]
[BlackElo "2319"]
[TimeControl "180+1"]
[EndTime "8:28:52 PST"]
[Termination "Zakaryan_David won on time"]

1. e4 {[%clk 0:03:00.6]} 1... c5 {[%clk 0:02:59]} 2. Nf3 {[%clk 0:02:54.4]} 2...
e6 {[%clk 0:02:59.5]} 3. d4 {[%clk 0:02:54.5]} 3... cxd4 {[%clk 0:03:00.1]} 4.
Nxd4 {[%clk 0:02:55.4]} 4... a6 {[%clk 0:03:00.6]} 5. c4 {[%clk 0:02:55.5]} 5...
Nf6 {[%clk 0:02:59.6]} 6. Nc3 {[%clk 0:02:55.8]} 6... d6 {[%clk 0:03:00]} 7. Be3
{[%clk 0:02:53]} 7... Be7 {[%clk 0:03:00.4]} 8. Be2 {[%clk 0:02:53.2]} 8... Nbd7
{[%clk 0:02:58.1]} 9. Rc1 {[%clk 0:02:53.1]} 9... O-O {[%clk 0:02:56.7]} 10. f3
{[%clk 0:02:52.8]} 10... Qc7 {[%clk 0:02:57]} 11. Kd2 {[%clk 0:02:50.8]} 11...
b6 {[%clk 0:02:57.3]} 12. Kc2 {[%clk 0:02:49.2]} 12... Bb7 {[%clk 0:02:57.9]}
13. Kb1 {[%clk 0:02:48.3]} 13... Rfc8 {[%clk 0:02:51.6]} 14. g4 {[%clk
0:02:48.4]} 14... Qd8 {[%clk 0:02:38.7]} 15. h4 {[%clk 0:02:39]} 15... Ne5
{[%clk 0:02:33.9]} 16. g5 {[%clk 0:02:34]} 16... Nfd7 {[%clk 0:02:27.1]} 17. b3
{[%clk 0:02:33.1]} 17... b5 {[%clk 0:02:16.8]} 18. f4 {[%clk 0:02:33.2]} 18...
b4 {[%clk 0:02:07.6]} 19. Na4 {[%clk 0:02:32.2]} 19... Bxe4+ {[%clk 0:02:06.7]}
20. Ka1 {[%clk 0:02:31.1]} 20... Bxh1 {[%clk 0:01:54.6]} 21. Qxh1 {[%clk
0:02:31]} 21... Ng6 {[%clk 0:01:46.6]} 22. h5 {[%clk 0:02:31.4]} 22... Ngf8
{[%clk 0:01:47.2]} 23. g6 {[%clk 0:02:31.2]} 23... fxg6 {[%clk 0:01:44.2]} 24.
hxg6 {[%clk 0:02:31.5]} 24... hxg6 {[%clk 0:01:44.7]} 25. Bg4 {[%clk 0:02:31]}
25... Kf7 {[%clk 0:01:38.6]} 26. Qh3 {[%clk 0:02:29.7]} 26... Bf6 {[%clk
0:01:33.9]} 27. Kb1 {[%clk 0:02:29.2]} 27... Bxd4 {[%clk 0:01:27.1]} 28. Bxd4
{[%clk 0:02:08.6]} 28... Nf6 {[%clk 0:01:25.7]} 29. Bf3 {[%clk 0:02:06.6]} 29...
e5 {[%clk 0:01:16.4]} 30. Bb2 {[%clk 0:01:56.7]} 30... Qd7 {[%clk 0:01:05.1]}
31. Qg2 {[%clk 0:01:38.5]} 31... Qf5+ {[%clk 0:01:03.3]} 32. Ka1 {[%clk
0:01:38.9]} 32... e4 {[%clk 0:00:58.6]} 33. Be2 {[%clk 0:01:39.3]} 33... Re8
{[%clk 0:00:50.2]} 34. Rd1 {[%clk 0:01:38]} 34... d5 {[%clk 0:00:45]} 35. Nb6
{[%clk 0:01:35.6]} 35... Rad8 {[%clk 0:00:42.3]} 36. Nxd5 {[%clk 0:01:23.3]}
36... Nxd5 {[%clk 0:00:32]} 37. cxd5 {[%clk 0:01:11.5]} 37... Nd7 {[%clk
0:00:20.4]} 38. d6 {[%clk 0:01:06.8]} 38... Nf6 {[%clk 0:00:10.5]} 39. Bc4+
{[%clk 0:01:06.3]} 39... Kf8 {[%clk 0:00:09.2]} 40. Rh1 {[%clk 0:00:55.8]} 40...
Nh5 {[%clk 0:00:08.1]} 41. Qd2 {[%clk 0:00:54.8]} 41... e3 {[%clk 0:00:06.1]}
42. Qxb4 {[%clk 0:00:55.2]} 1-0